[Event "GrandPrix_30.05"]
[Site "Chess.com"]
[Date "2020.05.30"]
[Round "8"]
[White "WhiteCapital80"]
[Black "DenLaz"]
[Result "1/2-1/2"]
[WhiteElo "2448"]
[BlackElo "2562"]
[TimeControl "600+2"]
[EndTime "11:50:06 PDT"]
[Termination "Game drawn by agreement"]

1. e4 {[%clk 0:09:44.8]} 1... e5 {[%clk 0:10:00.1]} 2. Nf3 {[%clk 0:09:45.5]}
2... Nc6 {[%clk 0:10:01.6]} 3. Bb5 {[%clk 0:09:46.1]} 3... a6 {[%clk 0:10:02.6]}
4. Ba4 {[%clk 0:09:46.5]} 4... Nf6 {[%clk 0:10:03.6]} 5. d4 {[%clk 0:09:47.3]}
5... exd4 {[%clk 0:10:01]} 6. O-O {[%clk 0:09:47.2]} 6... Be7 {[%clk 0:10:00.6]}
7. e5 {[%clk 0:09:47.9]} 7... Ne4 {[%clk 0:10:01.1]} 8. Nxd4 {[%clk 0:09:48.7]}
8... O-O {[%clk 0:10:01.8]} 9. Nf5 {[%clk 0:09:43]} 9... d5 {[%clk 0:09:41.6]}
10. Nxe7+ {[%clk 0:08:39.5]} 10... Nxe7 {[%clk 0:09:40.8]} 11. c3 {[%clk
0:08:35.4]} 11... Bf5 {[%clk 0:09:37.7]} 12. Bc2 {[%clk 0:08:17.5]} 12... Nc5
{[%clk 0:09:31.6]} 13. Re1 {[%clk 0:08:04.5]} 13... Qd7 {[%clk 0:09:27.9]} 14.
Be3 {[%clk 0:07:57.3]} 14... Ne6 {[%clk 0:09:26.3]} 15. Nd2 {[%clk 0:07:50.5]}
15... Rad8 {[%clk 0:09:15.6]} 16. Nf3 {[%clk 0:07:14.4]} 16... c5 {[%clk
0:08:18.3]} 17. Bg5 {[%clk 0:06:21.6]} 17... Bxc2 {[%clk 0:07:52]} 18. Qxc2
{[%clk 0:06:22]} 18... h6 {[%clk 0:07:52.3]} 19. Bxe7 {[%clk 0:06:11.8]} 19...
Qxe7 {[%clk 0:07:54.2]} 20. Rad1 {[%clk 0:06:10.9]} 20... d4 {[%clk 0:07:34.1]}
21. Qf5 {[%clk 0:05:45]} 21... dxc3 {[%clk 0:07:29.7]} 22. bxc3 {[%clk
0:05:45.5]} 22... Rxd1 {[%clk 0:07:31.1]} 23. Rxd1 {[%clk 0:05:46.5]} 23... Rd8
{[%clk 0:07:32.6]} 24. Qc2 {[%clk 0:05:36.2]} 24... b5 {[%clk 0:07:29]} 25. h3
{[%clk 0:05:29.8]} 25... Rd7 {[%clk 0:07:24.4]} 26. Kh2 {[%clk 0:05:18.5]} 26...
Qd8 {[%clk 0:07:23.7]} 27. Rxd7 {[%clk 0:05:18.7]} 27... Qxd7 {[%clk 0:07:25.6]}
28. Qe4 {[%clk 0:05:18.8]} 28... Qc8 {[%clk 0:06:42.2]} 29. Nh4 {[%clk
0:04:54.5]} 29... Qd8 {[%clk 0:06:07.4]} 30. Nf5 {[%clk 0:03:38.6]} 30... Qd2
{[%clk 0:05:58.6]} 31. Qa8+ {[%clk 0:03:38.4]} 31... Kh7 {[%clk 0:05:57.7]} 32.
Ne7 {[%clk 0:03:36.2]} 32... Qf4+ {[%clk 0:05:33.4]} 33. Kg1 {[%clk 0:03:36.6]}
1/2-1/2

[Event "GrandPrix_30.05"]
[Site "Chess.com"]
[Date "2020.05.30"]
[Round "8"]
[White "Sergey_Krivenko"]
[Black "iceboy88"]
[Result "1-0"]
[WhiteElo "2103"]
[BlackElo "2187"]
[TimeControl "600+2"]
[EndTime "11:50:10 PDT"]
[Termination "Sergey_Krivenko won by resignation"]

1. d4 {[%clk 0:10:01.9]} 1... Nf6 {[%clk 0:09:55.3]} 2. Nf3 {[%clk 0:10:01.4]}
2... c5 {[%clk 0:09:55.7]} 3. c3 {[%clk 0:08:47.6]} 3... e6 {[%clk 0:09:46.5]}
4. Bf4 {[%clk 0:08:43.3]} 4... d5 {[%clk 0:09:41.9]} 5. e3 {[%clk 0:08:40.5]}
5... Bd6 {[%clk 0:09:42.8]} 6. Bxd6 {[%clk 0:08:39.2]} 6... Qxd6 {[%clk
0:09:43.5]} 7. Ne5 {[%clk 0:08:37.8]} 7... Nc6 {[%clk 0:09:40]} 8. f4 {[%clk
0:08:35.7]} 8... O-O {[%clk 0:09:30.1]} 9. Bd3 {[%clk 0:08:08.9]} 9... Ne4
{[%clk 0:09:18.9]} 10. Nd2 {[%clk 0:07:55.5]} 10... Nxd2 {[%clk 0:08:47.5]} 11.
Qxd2 {[%clk 0:07:57.4]} 11... f6 {[%clk 0:08:47.3]} 12. Nxc6 {[%clk 0:07:24.7]}
12... bxc6 {[%clk 0:08:46]} 13. O-O {[%clk 0:07:10.1]} 13... Bd7 {[%clk
0:08:37]} 14. Rf2 {[%clk 0:04:51.6]} 14... e5 {[%clk 0:08:26.1]} 15. dxe5 {[%clk
0:04:32.7]} 15... fxe5 {[%clk 0:08:26.1]} 16. Raf1 {[%clk 0:04:27.9]} 16... h6
{[%clk 0:07:57]} 17. fxe5 {[%clk 0:04:09.4]} 17... Qxe5 {[%clk 0:07:56.8]} 18.
Rxf8+ {[%clk 0:04:09.1]} 18... Rxf8 {[%clk 0:07:57.6]} 19. Bh7+ {[%clk
0:04:01.6]} 19... Kxh7 {[%clk 0:07:52.3]} 20. Rxf8 {[%clk 0:04:03]} 20... Bf5
{[%clk 0:07:48.6]} 21. Qf2 {[%clk 0:03:43]} 21... Bb1 {[%clk 0:07:48.3]} 22. Qf4
{[%clk 0:03:21.9]} 22... Qh5 {[%clk 0:07:42.3]} 23. h3 {[%clk 0:03:02.4]} 23...
Qd1+ {[%clk 0:07:09.6]} 24. Kh2 {[%clk 0:02:53.6]} 24... Be4 {[%clk 0:06:56.2]}
25. Rf7 {[%clk 0:02:19.5]} 25... Qd2 {[%clk 0:06:46.2]} 26. Qg3 {[%clk
0:02:15.1]} 26... Bg6 {[%clk 0:06:46]} 27. Rxa7 {[%clk 0:02:11.1]} 27... Qxb2
{[%clk 0:06:47.1]} 28. Qe5 {[%clk 0:02:07.5]} 1-0

[Event "GrandPrix_30.05"]
[Site "Chess.com"]
[Date "2020.05.30"]
[Round "8"]
[White "FCLitras"]
[Black "Evgeny81"]
[Result "0-1"]
[WhiteElo "2215"]
[BlackElo "2427"]
[TimeControl "600+2"]
[EndTime "11:50:24 PDT"]
[Termination "Evgeny81 won by resignation"]

1. d4 {[%clk 0:10:01.9]} 1... Nf6 {[%clk 0:09:58.8]} 2. c4 {[%clk 0:10:02.5]}
2... e6 {[%clk 0:09:59.7]} 3. g3 {[%clk 0:10:03.7]} 3... Bb4+ {[%clk 0:09:59.1]}
4. Bd2 {[%clk 0:10:04]} 4... Qe7 {[%clk 0:09:58.2]} 5. Nf3 {[%clk 0:10:04.9]}
5... Bxd2+ {[%clk 0:09:54.9]} 6. Qxd2 {[%clk 0:10:05.5]} 6... Nc6 {[%clk
0:09:52.4]} 7. Nc3 {[%clk 0:10:05.9]} 7... d5 {[%clk 0:09:53]} 8. Bg2 {[%clk
0:10:01.2]} 8... dxc4 {[%clk 0:09:51.4]} 9. Ne5 {[%clk 0:10:01.8]} 9... Nxe5
{[%clk 0:09:47.6]} 10. dxe5 {[%clk 0:10:03.7]} 10... Nd7 {[%clk 0:09:48.7]} 11.
Qd4 {[%clk 0:10:00.3]} 11... O-O {[%clk 0:09:46.3]} 12. O-O {[%clk 0:09:59.6]}
12... Qb4 {[%clk 0:09:39.8]} 13. Rab1 {[%clk 0:09:48.8]} 13... Qb6 {[%clk
0:08:32.6]} 14. Qf4 {[%clk 0:09:33.6]} 14... Qc5 {[%clk 0:08:30.1]} 15. Rfd1
{[%clk 0:09:20.7]} 15... Qxe5 {[%clk 0:08:12.5]} 16. Qxc4 {[%clk 0:09:21.6]}
16... Nb6 {[%clk 0:07:51.9]} 17. Qd3 {[%clk 0:09:14.3]} 17... Rb8 {[%clk
0:07:47.9]} 18. Rbc1 {[%clk 0:09:00.7]} 18... Bd7 {[%clk 0:07:38.8]} 19. Ne4
{[%clk 0:09:00.5]} 19... Bc6 {[%clk 0:06:52]} 20. b3 {[%clk 0:09:01]} 20... h6
{[%clk 0:06:36.2]} 21. Rc5 {[%clk 0:09:01.6]} 21... Bxe4 {[%clk 0:06:29.5]} 22.
Rxe5 {[%clk 0:09:02.2]} 22... Bxd3 {[%clk 0:06:30.4]} 23. Rxd3 {[%clk
0:09:03.4]} 23... c6 {[%clk 0:06:20.7]} 24. a4 {[%clk 0:09:04]} 24... Rfd8
{[%clk 0:06:14.4]} 25. a5 {[%clk 0:08:54.2]} 25... Rxd3 {[%clk 0:06:10.2]} 26.
exd3 {[%clk 0:08:56.1]} 26... Nd5 {[%clk 0:05:56.9]} 27. f4 {[%clk 0:08:56.3]}
27... g6 {[%clk 0:05:51.4]} 28. Re4 {[%clk 0:08:49.9]} 28... Rd8 {[%clk
0:05:41.8]} 29. Rc4 {[%clk 0:08:50.6]} 29... a6 {[%clk 0:04:38]} 30. Kf2 {[%clk
0:08:44]} 30... Kf8 {[%clk 0:04:24.1]} 31. Bf3 {[%clk 0:08:43]} 31... Ke7 {[%clk
0:04:18.1]} 32. Ke2 {[%clk 0:08:43.8]} 32... h5 {[%clk 0:04:10.4]} 33. Rc1
{[%clk 0:08:40.5]} 33... Nc7 {[%clk 0:04:04.7]} 34. Ke3 {[%clk 0:08:39]} 34...
Nb5 {[%clk 0:04:02.8]} 35. h3 {[%clk 0:08:32.5]} 35... Nd4 {[%clk 0:03:46.2]}
36. Be4 {[%clk 0:08:30.1]} 36... Nxb3 {[%clk 0:03:37.9]} 37. Rb1 {[%clk
0:08:31]} 37... Nxa5 {[%clk 0:03:38.1]} 38. g4 {[%clk 0:08:32.2]} 38... hxg4
{[%clk 0:03:38.1]} 39. hxg4 {[%clk 0:08:34.1]} 39... Kd6 {[%clk 0:03:19.8]} 40.
f5 {[%clk 0:08:32.4]} 40... gxf5 {[%clk 0:03:19.6]} 41. gxf5 {[%clk 0:08:34.3]}
41... exf5 {[%clk 0:03:08.7]} 42. Bxf5 {[%clk 0:08:36.2]} 42... Kc7 {[%clk
0:03:04.7]} 43. Be4 {[%clk 0:08:35.6]} 43... b5 {[%clk 0:03:01.5]} 44. Rf1
{[%clk 0:08:36.4]} 44... Rd7 {[%clk 0:03:02]} 45. Rf6 {[%clk 0:08:35.2]} 45...
Kb6 {[%clk 0:02:52]} 46. d4 {[%clk 0:08:35.8]} 46... Nc4+ {[%clk 0:02:42.9]} 47.
Kd3 {[%clk 0:08:36.4]} 47... Rd6 {[%clk 0:02:36.2]} 48. Rf5 {[%clk 0:08:30.2]}
48... f6 {[%clk 0:02:29.4]} 49. Kc3 {[%clk 0:08:31.2]} 49... Ne3 {[%clk
0:02:22.1]} 50. Rf3 {[%clk 0:08:27.8]} 50... Nd5+ {[%clk 0:02:21.4]} 51. Kb3
{[%clk 0:08:27.2]} 51... a5 {[%clk 0:02:18.2]} 52. Rh3 {[%clk 0:08:20.8]} 52...
a4+ {[%clk 0:02:14.9]} 53. Kc2 {[%clk 0:08:21.9]} 53... Nf4 {[%clk 0:02:09.2]}
54. Rf3 {[%clk 0:08:21.7]} 54... Ne2 {[%clk 0:02:06.8]} 0-1

[Event "GrandPrix_30.05"]
[Site "Chess.com"]
[Date "2020.05.30"]
[Round "8"]
[White "AliKa2810"]
[Black "eristeski7"]
[Result "0-1"]
[WhiteElo "2051"]
[BlackElo "2139"]
[TimeControl "600+2"]
[EndTime "11:50:29 PDT"]
[Termination "eristeski7 won by resignation"]

1. d4 {[%clk 0:09:57.2]} 1... Nf6 {[%clk 0:09:59.6]} 2. c4 {[%clk 0:09:57.6]}
2... g6 {[%clk 0:10:01.2]} 3. Nc3 {[%clk 0:09:58.1]} 3... Bg7 {[%clk 0:10:02.8]}
4. e4 {[%clk 0:09:59]} 4... d6 {[%clk 0:10:04.5]} 5. h3 {[%clk 0:10:00]} 5...
O-O {[%clk 0:10:05.6]} 6. Be3 {[%clk 0:10:01.6]} 6... e5 {[%clk 0:10:06.5]} 7.
d5 {[%clk 0:10:02.6]} 7... Na6 {[%clk 0:10:07.5]} 8. g4 {[%clk 0:09:59.3]} 8...
Nc5 {[%clk 0:10:06.8]} 9. f3 {[%clk 0:09:57.3]} 9... c6 {[%clk 0:10:05.9]} 10.
Nge2 {[%clk 0:09:51.1]} 10... cxd5 {[%clk 0:09:55.1]} 11. cxd5 {[%clk
0:09:52.1]} 11... a5 {[%clk 0:09:56]} 12. Qd2 {[%clk 0:09:32.9]} 12... a4 {[%clk
0:09:52.4]} 13. Ng3 {[%clk 0:09:33]} 13... Bd7 {[%clk 0:09:48.8]} 14. h4 {[%clk
0:09:32.7]} 14... Qa5 {[%clk 0:09:48.3]} 15. h5 {[%clk 0:09:33.4]} 15... b5
{[%clk 0:09:47.5]} 16. h6 {[%clk 0:09:32.9]} 16... Bh8 {[%clk 0:09:45.3]} 17.
Nf5 {[%clk 0:09:33.8]} 17... Bxf5 {[%clk 0:09:12.9]} 18. gxf5 {[%clk 0:09:33.6]}
18... b4 {[%clk 0:09:02.3]} 19. Nd1 {[%clk 0:09:33.8]} 19... Nfxe4 {[%clk
0:07:26.5]} 20. fxe4 {[%clk 0:09:33.3]} 20... Nxe4 {[%clk 0:07:28.4]} 21. Qg2
{[%clk 0:09:03.4]} 21... b3+ {[%clk 0:06:06.8]} 22. Ke2 {[%clk 0:09:00.7]} 22...
Qb5+ {[%clk 0:05:37]} 23. Ke1 {[%clk 0:08:56.6]} 23... Qa5+ {[%clk 0:05:36.5]}
24. Ke2 {[%clk 0:08:57.2]} 24... Qxd5 {[%clk 0:05:35.9]} 25. Nf2 {[%clk
0:08:56.5]} 25... Qb5+ {[%clk 0:04:36.9]} 26. Kf3 {[%clk 0:08:57]} 26... Qc6
{[%clk 0:04:05.1]} 27. Nxe4 {[%clk 0:08:57.8]} 27... d5 {[%clk 0:04:04.2]} 28.
Bd3 {[%clk 0:08:58.8]} 28... Rab8 {[%clk 0:03:37.1]} 29. Rhc1 {[%clk 0:08:55.9]}
29... Qd7 {[%clk 0:03:36.6]} 30. Nc5 {[%clk 0:08:32.4]} 30... e4+ {[%clk
0:03:35.4]} 31. Nxe4 {[%clk 0:08:14.8]} 31... Qxf5+ {[%clk 0:03:33.8]} 32. Ke2
{[%clk 0:07:48.5]} 32... dxe4 {[%clk 0:03:23.7]} 33. Bxe4 {[%clk 0:07:48.1]}
33... Qh5+ {[%clk 0:03:22.8]} 34. Ke1 {[%clk 0:07:27.6]} 34... a3 {[%clk
0:02:58.4]} 35. Rc5 {[%clk 0:07:04.6]} 35... axb2 {[%clk 0:02:15.9]} 36. Rd1
{[%clk 0:07:04.5]} 36... Qxd1+ {[%clk 0:01:58.8]} 37. Kxd1 {[%clk 0:07:05]}
37... bxa2 {[%clk 0:01:59.9]} 0-1

[Event "GrandPrix_30.05"]
[Site "Chess.com"]
[Date "2020.05.30"]
[Round "8"]
[White "StephenDedalus83"]
[Black "cantdefyme"]
[Result "1-0"]
[WhiteElo "2049"]
[BlackElo "1886"]
[TimeControl "600+2"]
[EndTime "11:50:30 PDT"]
[Termination "StephenDedalus83 won on time"]

1. e4 {[%clk 0:10:01.9]} 1... c5 {[%clk 0:09:31.4]} 2. Nf3 {[%clk 0:10:02.2]}
2... d6 {[%clk 0:09:32.2]} 3. d4 {[%clk 0:10:02.3]} 3... cxd4 {[%clk 0:09:34.1]}
4. Nxd4 {[%clk 0:10:03.2]} 4... Nf6 {[%clk 0:09:35.5]} 5. Nc3 {[%clk 0:10:04.4]}
5... a6 {[%clk 0:09:37]} 6. Be3 {[%clk 0:09:58.2]} 6... e5 {[%clk 0:09:17]} 7.
Nb3 {[%clk 0:09:57.8]} 7... Be6 {[%clk 0:09:18.1]} 8. f3 {[%clk 0:09:55.9]} 8...
Nbd7 {[%clk 0:09:19.4]} 9. g4 {[%clk 0:09:55.8]} 9... b5 {[%clk 0:09:18.1]} 10.
g5 {[%clk 0:09:56.4]} 10... b4 {[%clk 0:09:10]} 11. Ne2 {[%clk 0:09:56.4]} 11...
Nh5 {[%clk 0:09:04.7]} 12. Qd2 {[%clk 0:09:57]} 12... a5 {[%clk 0:08:30.8]} 13.
Ng3 {[%clk 0:09:56.7]} 13... a4 {[%clk 0:05:59.6]} 14. Nxh5 {[%clk 0:09:46.2]}
14... axb3 {[%clk 0:05:56.7]} 15. cxb3 {[%clk 0:09:42.2]} 15... Bxb3 {[%clk
0:05:56.6]} 16. Bb5 {[%clk 0:09:35.5]} 16... Rxa2 {[%clk 0:05:45.5]} 17. Rxa2
{[%clk 0:09:34.9]} 17... Bxa2 {[%clk 0:05:47.4]} 18. Qxb4 {[%clk 0:09:29.6]}
18... Be6 {[%clk 0:05:33.2]} 19. O-O {[%clk 0:09:28.3]} 19... d5 {[%clk
0:05:32.7]} 20. Qa4 {[%clk 0:09:22.4]} 20... d4 {[%clk 0:04:33.4]} 21. Bd2
{[%clk 0:09:22.8]} 21... h6 {[%clk 0:04:34.1]} 22. gxh6 {[%clk 0:09:21.8]} 22...
gxh6 {[%clk 0:00:18.4]} 23. Rc1 {[%clk 0:09:19.1]} 23... Rg8+ {[%clk 0:00:16.6]}
24. Ng3 {[%clk 0:09:18.6]} 24... Bd6 {[%clk 0:00:05.3]} 25. Rc6 {[%clk 0:09:12]}
25... Bc7 {[%clk 0:00:03.3]} 26. Bb4 {[%clk 0:09:06.1]} 26... h5 {[%clk
0:00:03.5]} 27. Kf2 {[%clk 0:09:05.3]} 27... h4 {[%clk 0:00:03.9]} 28. Nf1
{[%clk 0:08:54]} 28... Bh3 {[%clk 0:00:04.5]} 29. Bd6 {[%clk 0:08:39.1]} 29...
Rg2+ {[%clk 0:00:04.3]} 30. Ke1 {[%clk 0:08:38.9]} 30... Qg5 {[%clk 0:00:04]}
31. Rxc7 {[%clk 0:08:33.9]} 1-0

[Event "GrandPrix_30.05"]
[Site "Chess.com"]
[Date "2020.05.30"]
[Round "8"]
[White "BakaPG"]
[Black "payto1"]
[Result "1/2-1/2"]
[WhiteElo "2255"]
[BlackElo "2183"]
[TimeControl "600+2"]
[EndTime "11:50:37 PDT"]
[Termination "Game drawn by agreement"]

1. e4 {[%clk 0:10:01.5]} 1... Nc6 {[%clk 0:09:58.4]} 2. Nf3 {[%clk 0:10:01.2]}
2... d6 {[%clk 0:09:57]} 3. d4 {[%clk 0:09:50.9]} 3... Nf6 {[%clk 0:09:57.4]} 4.
d5 {[%clk 0:09:51.2]} 4... Nb8 {[%clk 0:09:57.3]} 5. Nc3 {[%clk 0:09:50.7]} 5...
g6 {[%clk 0:09:57.8]} 6. h3 {[%clk 0:09:49.5]} 6... Bg7 {[%clk 0:09:58.5]} 7.
Be2 {[%clk 0:09:47.8]} 7... O-O {[%clk 0:09:58.9]} 8. O-O {[%clk 0:09:48.8]}
8... e5 {[%clk 0:09:59.8]} 9. dxe6 {[%clk 0:09:45.5]} 9... Bxe6 {[%clk
0:10:00.5]} 10. Nd4 {[%clk 0:09:41.2]} 10... Bd7 {[%clk 0:10:01]} 11. Bg5 {[%clk
0:09:40.9]} 11... h6 {[%clk 0:09:57.2]} 12. Bh4 {[%clk 0:09:40.2]} 12... Nc6
{[%clk 0:09:57.4]} 13. Nxc6 {[%clk 0:09:32.3]} 13... Bxc6 {[%clk 0:09:59.3]} 14.
Bd3 {[%clk 0:09:33.4]} 14... Qd7 {[%clk 0:09:38.3]} 15. f4 {[%clk 0:09:27.9]}
15... Rfe8 {[%clk 0:09:34.7]} 16. Qf3 {[%clk 0:08:58]} 16... Nxe4 {[%clk
0:06:42.4]} 17. Nxe4 {[%clk 0:08:20.7]} 17... f5 {[%clk 0:06:41.2]} 18. Rae1
{[%clk 0:08:20.6]} 18... Kh7 {[%clk 0:06:23.3]} 19. g4 {[%clk 0:07:25.8]} 19...
fxe4 {[%clk 0:05:48.6]} 20. Bxe4 {[%clk 0:07:22.3]} 20... Bxe4 {[%clk
0:05:06.7]} 21. Rxe4 {[%clk 0:07:19.1]} 21... Qc6 {[%clk 0:05:04.4]} 22. Rxe8
{[%clk 0:07:07.9]} 22... Rxe8 {[%clk 0:05:06.3]} 23. c3 {[%clk 0:06:34.8]} 23...
Qxf3 {[%clk 0:04:23]} 24. Rxf3 {[%clk 0:06:33.6]} 24... Kg8 {[%clk 0:04:19.2]}
25. Kf1 {[%clk 0:06:30.9]} 25... Kf7 {[%clk 0:04:19.6]} 26. b3 {[%clk
0:06:23.4]} 26... d5 {[%clk 0:04:19.3]} 27. a4 {[%clk 0:06:13.6]} 27... c6
{[%clk 0:04:15.8]} 28. Bf2 {[%clk 0:06:06.9]} 28... a6 {[%clk 0:04:13.7]} 29. f5
{[%clk 0:06:04.6]} 29... g5 {[%clk 0:04:05.4]} 30. c4 {[%clk 0:06:02.7]} 30...
d4 {[%clk 0:03:48.3]} 31. f6 {[%clk 0:05:56.5]} 31... Bxf6 {[%clk 0:03:48.8]}
32. Bxd4 {[%clk 0:05:56.2]} 32... Re6 {[%clk 0:03:49.8]} 33. b4 {[%clk
0:05:03.5]} 1/2-1/2

[Event "GrandPrix_30.05"]
[Site "Chess.com"]
[Date "2020.05.30"]
[Round "8"]
[White "Thor736"]
[Black "Cocolino12"]
[Result "0-1"]
[WhiteElo "2089"]
[BlackElo "2219"]
[TimeControl "600+2"]
[EndTime "11:50:49 PDT"]
[Termination "Cocolino12 won by resignation"]

1. e4 {[%clk 0:10:01.9]} 1... e5 {[%clk 0:09:59.5]} 2. Nf3 {[%clk 0:10:02.7]}
2... Nc6 {[%clk 0:09:59.7]} 3. Bb5 {[%clk 0:10:03.7]} 3... a6 {[%clk 0:09:59.7]}
4. Ba4 {[%clk 0:10:02.8]} 4... Nf6 {[%clk 0:09:59.4]} 5. O-O {[%clk 0:10:02.4]}
5... Nxe4 {[%clk 0:09:58.9]} 6. d4 {[%clk 0:10:02.8]} 6... exd4 {[%clk
0:09:59.3]} 7. Re1 {[%clk 0:09:59.9]} 7... d5 {[%clk 0:09:59.3]} 8. c4 {[%clk
0:10:01.1]} 8... Bb4 {[%clk 0:09:31.6]} 9. cxd5 {[%clk 0:09:59.9]} 9... Bxe1
{[%clk 0:09:23.1]} 10. Qxe1 {[%clk 0:09:56.3]} 10... Qxd5 {[%clk 0:09:22.2]} 11.
Bb3 {[%clk 0:09:57.1]} 11... Qc5 {[%clk 0:08:44.1]} 12. Qxe4+ {[%clk 0:09:25.9]}
12... Be6 {[%clk 0:08:43.3]} 13. Bf4 {[%clk 0:08:00.7]} 13... O-O-O {[%clk
0:08:41.8]} 14. Bxe6+ {[%clk 0:08:00.4]} 14... fxe6 {[%clk 0:08:29.3]} 15. Nbd2
{[%clk 0:07:30.1]} 15... Qf5 {[%clk 0:08:09.5]} 16. Re1 {[%clk 0:06:47.6]} 16...
Rhf8 {[%clk 0:08:04.5]} 17. Bg5 {[%clk 0:06:27.4]} 17... Rd5 {[%clk 0:07:35.2]}
18. Qxe6+ {[%clk 0:06:19.6]} 18... Qxe6 {[%clk 0:07:27.2]} 19. Rxe6 {[%clk
0:06:21.1]} 19... h6 {[%clk 0:07:28.5]} 20. Bh4 {[%clk 0:06:21]} 20... d3 {[%clk
0:07:15.6]} 21. g4 {[%clk 0:05:53.2]} 21... g5 {[%clk 0:06:46.6]} 22. Bg3 {[%clk
0:05:53.3]} 22... Rxf3 {[%clk 0:06:45.4]} 23. Nxf3 {[%clk 0:05:54]} 23... d2
{[%clk 0:06:45]} 24. Nxd2 {[%clk 0:05:55.2]} 24... Rxd2 {[%clk 0:06:46.6]} 25.
Rxh6 {[%clk 0:05:55.7]} 25... Rxb2 {[%clk 0:06:30.9]} 26. Rh7 {[%clk 0:05:56]}
26... Nd4 {[%clk 0:06:26.3]} 27. Kg2 {[%clk 0:05:49.5]} 27... Ne6 {[%clk
0:06:10.7]} 28. a4 {[%clk 0:04:53]} 28... Rc2 {[%clk 0:05:52]} 29. Rf7 {[%clk
0:04:32.6]} 29... b5 {[%clk 0:05:47.4]} 30. axb5 {[%clk 0:04:32.9]} 30... axb5
{[%clk 0:05:47.9]} 31. h4 {[%clk 0:04:32.2]} 31... gxh4 {[%clk 0:05:41]} 32.
Bxh4 {[%clk 0:04:21]} 32... b4 {[%clk 0:05:40.8]} 33. Bf6 {[%clk 0:04:14.9]}
33... c5 {[%clk 0:05:29.1]} 34. g5 {[%clk 0:04:12.4]} 34... b3 {[%clk
0:05:17.8]} 35. g6 {[%clk 0:04:05.6]} 35... Nf4+ {[%clk 0:05:17]} 36. Kf3 {[%clk
0:04:01.9]} 36... Nxg6 {[%clk 0:05:17.8]} 37. Ke4 {[%clk 0:04:03.2]} 37... Rxf2
{[%clk 0:05:09.9]} 0-1

[Event "GrandPrix_30.05"]
[Site "Chess.com"]
[Date "2020.05.30"]
[Round "8"]
[White "francyIM"]
[Black "levvard"]
[Result "0-1"]
[WhiteElo "2461"]
[BlackElo "2093"]
[TimeControl "600+2"]
[EndTime "11:50:56 PDT"]
[Termination "levvard won by resignation"]

1. d4 {[%clk 0:10:01.9]} 1... e6 {[%clk 0:10:00.2]} 2. c4 {[%clk 0:10:02]} 2...
d6 {[%clk 0:10:01.1]} 3. Nf3 {[%clk 0:09:59.1]} 3... Be7 {[%clk 0:09:57.8]} 4.
g3 {[%clk 0:09:59.6]} 4... Nf6 {[%clk 0:09:57.6]} 5. Bg2 {[%clk 0:10:00.6]} 5...
O-O {[%clk 0:09:57.4]} 6. O-O {[%clk 0:10:01.6]} 6... c5 {[%clk 0:09:58.1]} 7.
Nc3 {[%clk 0:10:01.3]} 7... cxd4 {[%clk 0:09:50.8]} 8. Nxd4 {[%clk 0:10:03.2]}
8... Na6 {[%clk 0:09:48.5]} 9. b3 {[%clk 0:10:03.2]} 9... Nc5 {[%clk 0:09:46.1]}
10. Bb2 {[%clk 0:10:04.1]} 10... Bd7 {[%clk 0:09:44.3]} 11. Qd2 {[%clk
0:10:03.5]} 11... Qb6 {[%clk 0:09:42.6]} 12. Rfd1 {[%clk 0:10:02.6]} 12... Rad8
{[%clk 0:09:40.3]} 13. Rab1 {[%clk 0:09:56.9]} 13... Rfe8 {[%clk 0:09:39.2]} 14.
Ba1 {[%clk 0:09:56.4]} 14... d5 {[%clk 0:09:22.2]} 15. cxd5 {[%clk 0:09:53.7]}
15... exd5 {[%clk 0:09:21.4]} 16. Rbc1 {[%clk 0:09:31.8]} 16... Ne6 {[%clk
0:09:13]} 17. Nf5 {[%clk 0:09:29.1]} 17... Bb4 {[%clk 0:09:11.2]} 18. Qb2 {[%clk
0:08:40.5]} 18... Bc6 {[%clk 0:08:57.1]} 19. a3 {[%clk 0:08:31]} 19... Bc5
{[%clk 0:08:54.9]} 20. e3 {[%clk 0:08:29.1]} 20... d4 {[%clk 0:08:54.3]} 21.
exd4 {[%clk 0:08:21.6]} 21... Nxd4 {[%clk 0:08:56.2]} 22. Nxd4 {[%clk
0:08:20.8]} 22... Bxd4 {[%clk 0:08:55.9]} 23. Bxc6 {[%clk 0:08:17.8]} 23... bxc6
{[%clk 0:08:55.7]} 24. Qc2 {[%clk 0:07:58.9]} 24... Ng4 {[%clk 0:08:51.2]} 25.
Rd2 {[%clk 0:07:58.8]} 25... Re6 {[%clk 0:08:42.4]} 26. Na4 {[%clk 0:07:43.2]}
26... Bxf2+ {[%clk 0:08:24.9]} 27. Rxf2 {[%clk 0:05:56.9]} 27... Qe3 {[%clk
0:07:30]} 28. Nc5 {[%clk 0:04:24.6]} 28... Nxf2 {[%clk 0:06:26.4]} 29. Nxe6
{[%clk 0:04:13.4]} 29... Ng4+ {[%clk 0:05:14.2]} 30. Kh1 {[%clk 0:04:03]} 30...
Rd2 {[%clk 0:05:08.3]} 0-1

[Event "GrandPrix_30.05"]
[Site "Chess.com"]
[Date "2020.05.30"]
[Round "8"]
[White "grzechu96"]
[Black "DenisQ"]
[Result "1/2-1/2"]
[WhiteElo "2394"]
[BlackElo "2266"]
[TimeControl "600+2"]
[EndTime "11:51:04 PDT"]
[Termination "Game drawn by agreement"]

1. e4 {[%clk 0:10:01.9]} 1... c6 {[%clk 0:09:55]} 2. d4 {[%clk 0:10:00.1]} 2...
d5 {[%clk 0:09:55.1]} 3. Nc3 {[%clk 0:10:01.5]} 3... dxe4 {[%clk 0:09:54.6]} 4.
Nxe4 {[%clk 0:10:03.4]} 4... Bf5 {[%clk 0:09:55.4]} 5. Qf3 {[%clk 0:09:57.1]}
5... e6 {[%clk 0:09:51.3]} 6. Ne2 {[%clk 0:09:57.5]} 6... Nd7 {[%clk 0:09:23.4]}
7. N2g3 {[%clk 0:09:48.5]} 7... Bg6 {[%clk 0:09:23.4]} 8. h4 {[%clk 0:09:38.4]}
8... h6 {[%clk 0:09:23]} 9. Bd3 {[%clk 0:09:38.8]} 9... Ngf6 {[%clk 0:08:55.2]}
10. Nxf6+ {[%clk 0:08:29.2]} 10... Qxf6 {[%clk 0:08:54.2]} 11. Qxf6 {[%clk
0:08:30.1]} 11... gxf6 {[%clk 0:08:54.8]} 12. Bxg6 {[%clk 0:08:31]} 12... fxg6
{[%clk 0:08:54.6]} 13. h5 {[%clk 0:08:27.9]} 13... g5 {[%clk 0:08:52.3]} 14. Bd2
{[%clk 0:08:26.2]} 14... f5 {[%clk 0:08:40.2]} 15. O-O-O {[%clk 0:08:24.6]}
15... Bd6 {[%clk 0:08:37.6]} 16. Ne2 {[%clk 0:08:09.6]} 16... Kf7 {[%clk
0:08:31.2]} 17. c4 {[%clk 0:07:54]} 17... Nf6 {[%clk 0:08:28]} 18. Nc3 {[%clk
0:07:54.2]} 18... Rad8 {[%clk 0:08:14.2]} 19. f3 {[%clk 0:07:41.8]} 19... g4
{[%clk 0:07:05.5]} 20. Ne2 {[%clk 0:07:33.3]} 20... Rdg8 {[%clk 0:05:25.4]} 21.
Bf4 {[%clk 0:06:28.6]} 21... Be7 {[%clk 0:05:24.4]} 22. Rh2 {[%clk 0:05:51.8]}
22... Rh7 {[%clk 0:05:13]} 23. Kc2 {[%clk 0:05:49.4]} 23... Rhg7 {[%clk
0:04:50.5]} 24. Bxh6 {[%clk 0:05:11]} 24... Rh7 {[%clk 0:04:50.5]} 25. Bf4
{[%clk 0:05:12.3]} 25... Rxh5 {[%clk 0:04:39.3]} 26. Rdh1 {[%clk 0:05:13]} 26...
gxf3 {[%clk 0:04:32]} 27. gxf3 {[%clk 0:05:11]} 27... Rgh8 {[%clk 0:04:02.9]}
28. Rxh5 {[%clk 0:04:59.4]} 28... Rxh5 {[%clk 0:04:04.8]} 29. Rxh5 {[%clk
0:05:00.3]} 29... Nxh5 {[%clk 0:04:04.9]} 30. Be5 {[%clk 0:05:01.7]} 30... Nf6
{[%clk 0:03:59.8]} 31. Kc3 {[%clk 0:04:58.6]} 31... Nd7 {[%clk 0:04:00.1]}
1/2-1/2